[Event "*** Titled Tuesday Blitz"]
[Site "Chess.com"]
[Date "2019.07.02"]
[Round "3"]
[White "GMKrikor"]
[Black "DanielNaroditsky"]
[Result "0-1"]
[WhiteElo "2727"]
[BlackElo "3022"]
[TimeControl "180+2"]
[EndTime "13:41:18 PDT"]
[Termination "DanielNaroditsky won by resignation"]

1. Nf3 {[%clk 0:03:01.9]} 1... d5 {[%clk 0:03:01]} 2. g3 {[%clk 0:03:01.4]} 2...
g6 {[%clk 0:03:02.1]} 3. d4 {[%clk 0:03:01.2]} 3... Bg7 {[%clk 0:03:03.2]} 4.
Bg2 {[%clk 0:03:02.8]} 4... Nd7 {[%clk 0:03:02.9]} 5. O-O {[%clk 0:02:57.7]}
5... Ngf6 {[%clk 0:03:04.2]} 6. c4 {[%clk 0:02:45]} 6... dxc4 {[%clk 0:03:06.1]}
7. Na3 {[%clk 0:02:46.1]} 7... Nb6 {[%clk 0:03:07.3]} 8. Nxc4 {[%clk 0:02:42.5]}
8... Nxc4 {[%clk 0:03:09.2]} 9. Qa4+ {[%clk 0:02:43.8]} 9... c6 {[%clk
0:03:10.7]} 10. Qxc4 {[%clk 0:02:45.1]} 10... Be6 {[%clk 0:03:04.7]} 11. Qc2
{[%clk 0:02:44.2]} 11... Bd5 {[%clk 0:02:59.6]} 12. Re1 {[%clk 0:02:39.2]} 12...
Be4 {[%clk 0:03:00.5]} 13. Qb3 {[%clk 0:02:38.2]} 13... Qb6 {[%clk 0:03:01.7]}
14. Bd2 {[%clk 0:01:50.3]} 14... O-O {[%clk 0:02:45.1]} 15. e3 {[%clk
0:01:35.1]} 15... Qxb3 {[%clk 0:02:30]} 16. axb3 {[%clk 0:01:36.1]} 16... Nd5
{[%clk 0:02:31.7]} 17. Rec1 {[%clk 0:01:33.7]} 17... Rfd8 {[%clk 0:02:16.2]} 18.
Ne1 {[%clk 0:01:02.4]} 18... Bxg2 {[%clk 0:02:13.3]} 19. Kxg2 {[%clk 0:01:04.3]}
19... e5 {[%clk 0:02:06.6]} 20. dxe5 {[%clk 0:01:06.2]} 20... Bxe5 {[%clk
0:02:06.6]} 21. Rc2 {[%clk 0:01:07.8]} 21... f5 {[%clk 0:01:51.9]} 22. Kf3
{[%clk 0:01:01.7]} 22... Nf6 {[%clk 0:01:32.2]} 23. Ke2 {[%clk 0:01:00.9]} 23...
Ne4 {[%clk 0:01:28.8]} 24. Nd3 {[%clk 0:00:55.4]} 24... Bf6 {[%clk 0:01:16]} 25.
Be1 {[%clk 0:00:56.5]} 25... a6 {[%clk 0:01:09.1]} 26. f3 {[%clk 0:00:56.4]}
26... Nd6 {[%clk 0:01:09.8]} 27. Nc5 {[%clk 0:00:56.6]} 27... Re8 {[%clk
0:01:06.9]} 28. Rd1 {[%clk 0:00:48]} 28... Nb5 {[%clk 0:01:03.9]} 29. Bc3 {[%clk
0:00:30.4]} 29... Nxc3+ {[%clk 0:00:40.9]} 30. bxc3 {[%clk 0:00:32.3]} 30... Re7
{[%clk 0:00:42.8]} 31. c4 {[%clk 0:00:24.2]} 31... Rae8 {[%clk 0:00:39.3]} 32.
Rd3 {[%clk 0:00:25.2]} 32... b6 {[%clk 0:00:33.4]} 33. Na4 {[%clk 0:00:26]}
33... b5 {[%clk 0:00:24.1]} 34. Nc5 {[%clk 0:00:25.9]} 34... a5 {[%clk
0:00:24.4]} 35. f4 {[%clk 0:00:25.4]} 35... Ra7 {[%clk 0:00:19.4]} 36. Kf3
{[%clk 0:00:19.7]} 36... a4 {[%clk 0:00:18.2]} 37. bxa4 {[%clk 0:00:20.7]} 37...
b4 {[%clk 0:00:17.2]} 38. Rb3 {[%clk 0:00:14.9]} 38... Bc3 {[%clk 0:00:16]} 39.
Ra2 {[%clk 0:00:11.6]} 39... Rae7 {[%clk 0:00:12.8]} 40. Re2 {[%clk 0:00:12.7]}
40... Bd4 {[%clk 0:00:10]} 41. Na6 {[%clk 0:00:10.2]} 41... c5 {[%clk
0:00:11.5]} 42. Kf2 {[%clk 0:00:07.5]} 42... Kg7 {[%clk 0:00:08.1]} 43. Kf3
{[%clk 0:00:09]} 43... h6 {[%clk 0:00:09]} 44. h3 {[%clk 0:00:10.3]} 44... g5
{[%clk 0:00:10.6]} 45. fxg5 {[%clk 0:00:10.8]} 45... hxg5 {[%clk 0:00:12.5]} 46.
g4 {[%clk 0:00:12.7]} 46... f4 {[%clk 0:00:13.2]} 47. e4 {[%clk 0:00:13.5]}
47... Ra8 {[%clk 0:00:11.8]} 48. Nxb4 {[%clk 0:00:09.9]} 48... Rb7 {[%clk
0:00:13.4]} 49. Rd2 {[%clk 0:00:08.8]} 49... Rab8 {[%clk 0:00:14.7]} 50. e5
{[%clk 0:00:03.2]} 50... Rxb4 {[%clk 0:00:15.9]} 51. Rxb4 {[%clk 0:00:04.8]}
51... Rxb4 {[%clk 0:00:17.8]} 52. Ke4 {[%clk 0:00:06.7]} 52... Rb3 {[%clk
0:00:14.8]} 53. Kf5 {[%clk 0:00:07.5]} 53... f3 {[%clk 0:00:15.7]} 54. Rd1
{[%clk 0:00:07]} 54... f2 {[%clk 0:00:16.7]} 55. Kxg5 {[%clk 0:00:07.1]} 55...
Re3 {[%clk 0:00:14.1]} 0-1

[Event "*** Titled Tuesday Blitz"]
[Site "Chess.com"]
[Date "2019.07.02"]
[Round "3"]
[White "pulvettd"]
[Black "IMAghasiyevKamal"]
[Result "1-0"]
[WhiteElo "2520"]
[BlackElo "2525"]
[TimeControl "180+2"]
[EndTime "13:41:18 PDT"]
[Termination "pulvettd won by resignation"]

1. d4 {[%clk 0:03:01.9]} 1... Nf6 {[%clk 0:02:59.6]} 2. c4 {[%clk 0:03:01.5]}
2... e6 {[%clk 0:03:00.4]} 3. Nf3 {[%clk 0:03:02.4]} 3... d5 {[%clk 0:03:01.4]}
4. g3 {[%clk 0:03:03.4]} 4... c6 {[%clk 0:02:58.7]} 5. Bg2 {[%clk 0:03:01.5]}
5... Be7 {[%clk 0:02:59.8]} 6. O-O {[%clk 0:03:03.2]} 6... O-O {[%clk
0:03:00.6]} 7. Nc3 {[%clk 0:03:02.4]} 7... dxc4 {[%clk 0:02:55]} 8. Ne5 {[%clk
0:03:02.8]} 8... Nd5 {[%clk 0:02:52]} 9. Nxc4 {[%clk 0:02:58.3]} 9... b6 {[%clk
0:02:52.5]} 10. Ne5 {[%clk 0:02:42.4]} 10... Bb7 {[%clk 0:02:50.8]} 11. e4
{[%clk 0:02:41]} 11... Nxc3 {[%clk 0:02:43]} 12. bxc3 {[%clk 0:02:42.9]} 12...
Nd7 {[%clk 0:02:44.5]} 13. Ng4 {[%clk 0:02:26.1]} 13... Qc8 {[%clk 0:02:05.1]}
14. Re1 {[%clk 0:02:23.5]} 14... Rd8 {[%clk 0:01:59]} 15. h4 {[%clk 0:02:14]}
15... Nf6 {[%clk 0:01:57.2]} 16. Bg5 {[%clk 0:01:58.9]} 16... Qc7 {[%clk
0:01:41.7]} 17. Nxf6+ {[%clk 0:01:49.6]} 17... Bxf6 {[%clk 0:01:38.3]} 18. Bxf6
{[%clk 0:01:49.5]} 18... gxf6 {[%clk 0:01:40.2]} 19. a4 {[%clk 0:01:35.8]} 19...
Kh8 {[%clk 0:01:36.2]} 20. a5 {[%clk 0:01:33.1]} 20... bxa5 {[%clk 0:01:34.9]}
21. Qf3 {[%clk 0:01:32.3]} 21... Kg7 {[%clk 0:01:28.6]} 22. Qg4+ {[%clk
0:01:32.5]} 22... Kh8 {[%clk 0:01:29.3]} 23. Qf3 {[%clk 0:01:32.8]} 23... Kg7
{[%clk 0:01:30.6]} 24. Qg4+ {[%clk 0:01:33.8]} 24... Kh8 {[%clk 0:01:31.9]} 25.
Qh5 {[%clk 0:01:35.7]} 25... c5 {[%clk 0:01:22.6]} 26. d5 {[%clk 0:01:33.4]}
26... Rg8 {[%clk 0:00:55.3]} 27. Qf3 {[%clk 0:01:12.4]} 27... f5 {[%clk
0:00:49.9]} 28. c4 {[%clk 0:01:04.2]} 28... f4 {[%clk 0:00:47.1]} 29. Qc3+
{[%clk 0:01:01.2]} 29... e5 {[%clk 0:00:46.2]} 30. Qxa5 {[%clk 0:00:56]} 30...
Qd6 {[%clk 0:00:46.4]} 31. Ra3 {[%clk 0:00:54]} 31... f6 {[%clk 0:00:39.4]} 32.
Kh2 {[%clk 0:00:53.3]} 32... Rg7 {[%clk 0:00:40.2]} 33. Bh3 {[%clk 0:00:52.5]}
33... Bc8 {[%clk 0:00:37.6]} 34. Bxc8 {[%clk 0:00:49.9]} 34... Rxc8 {[%clk
0:00:37.2]} 35. Qa6 {[%clk 0:00:51.8]} 35... Qd7 {[%clk 0:00:30.1]} 36. Qxf6
{[%clk 0:00:49.6]} 36... Kg8 {[%clk 0:00:20.3]} 37. Qxe5 {[%clk 0:00:45.4]}
37... Rg4 {[%clk 0:00:18.2]} 38. Qe6+ {[%clk 0:00:40.4]} 38... Qxe6 {[%clk
0:00:19.4]} 39. dxe6 {[%clk 0:00:42.3]} 39... Rc7 {[%clk 0:00:20.7]} 40. Kh3
{[%clk 0:00:40.8]} 40... h5 {[%clk 0:00:21.7]} 41. Rd1 {[%clk 0:00:37.6]} 41...
Kf8 {[%clk 0:00:21.4]} 42. Rd7 {[%clk 0:00:36.2]} 42... Rxd7 {[%clk 0:00:22.1]}
43. exd7 {[%clk 0:00:37.8]} 43... Ke7 {[%clk 0:00:24]} 44. Rxa7 {[%clk
0:00:37.5]} 44... fxg3 {[%clk 0:00:25]} 45. fxg3 {[%clk 0:00:37.1]} 45... Rxe4
{[%clk 0:00:26.2]} 46. d8=Q+ {[%clk 0:00:33.5]} 46... Kxd8 {[%clk 0:00:27.2]}
47. Rh7 {[%clk 0:00:33.9]} 47... Rxc4 {[%clk 0:00:28.8]} 48. Rxh5 {[%clk
0:00:34.5]} 48... Ke7 {[%clk 0:00:29.7]} 49. Rf5 {[%clk 0:00:34.2]} 49... Rc1
{[%clk 0:00:29.8]} 50. h5 {[%clk 0:00:34.7]} 50... c4 {[%clk 0:00:31.3]} 51. Kg4
{[%clk 0:00:32.8]} 51... c3 {[%clk 0:00:31.6]} 52. Rc5 {[%clk 0:00:29.7]} 52...
Kf6 {[%clk 0:00:29.5]} 53. h6 {[%clk 0:00:29.8]} 53... Kg6 {[%clk 0:00:29.7]}
54. Rc6+ {[%clk 0:00:30.8]} 54... Kh7 {[%clk 0:00:27.4]} 55. Kg5 {[%clk
0:00:32.7]} 55... c2 {[%clk 0:00:21.3]} 56. Rc7+ {[%clk 0:00:34.6]} 56... Kg8
{[%clk 0:00:20.5]} 57. Kg6 {[%clk 0:00:32.9]} 57... Kf8 {[%clk 0:00:18.6]} 58.
h7 {[%clk 0:00:33.6]} 58... Rh1 {[%clk 0:00:17.4]} 59. Rxc2 {[%clk 0:00:33.6]}
59... Rh3 {[%clk 0:00:18.4]} 60. Rc8+ {[%clk 0:00:32.7]} 60... Ke7 {[%clk
0:00:19.5]} 61. h8=Q {[%clk 0:00:33.4]} 61... Rxg3+ {[%clk 0:00:20]} 62. Kf5
{[%clk 0:00:34.5]} 62... Rf3+ {[%clk 0:00:21.3]} 63. Ke4 {[%clk 0:00:35.5]} 1-0

[Event "*** Titled Tuesday Blitz"]
[Site "Chess.com"]
[Date "2019.07.02"]
[Round "3"]
[White "KaterynaLagno"]
[Black "wadsy27"]
[Result "1/2-1/2"]
[WhiteElo "2660"]
[BlackElo "2443"]
[TimeControl "180+2"]
[EndTime "13:41:18 PDT"]
[Termination "Game drawn by agreement"]

1. e4 {[%clk 0:03:00.3]} 1... c5 {[%clk 0:03:00.1]} 2. Nf3 {[%clk 0:03:01.5]}
2... e6 {[%clk 0:03:00.8]} 3. d4 {[%clk 0:03:02.4]} 3... cxd4 {[%clk 0:03:02]}
4. Nxd4 {[%clk 0:03:04.3]} 4... Nc6 {[%clk 0:03:03.2]} 5. Nc3 {[%clk 0:03:05.4]}
5... Qc7 {[%clk 0:03:02.8]} 6. Be3 {[%clk 0:03:05.5]} 6... a6 {[%clk 0:03:00.5]}
7. Be2 {[%clk 0:03:04.9]} 7... Nf6 {[%clk 0:02:56.1]} 8. O-O {[%clk 0:03:05.7]}
8... Bb4 {[%clk 0:02:54.2]} 9. Na4 {[%clk 0:03:06.1]} 9... Be7 {[%clk
0:02:54.6]} 10. Nxc6 {[%clk 0:03:05.3]} 10... bxc6 {[%clk 0:02:52.3]} 11. Nb6
{[%clk 0:03:06.4]} 11... Rb8 {[%clk 0:02:52.4]} 12. Nxc8 {[%clk 0:03:07.6]}
12... Qxc8 {[%clk 0:02:52.9]} 13. Bd4 {[%clk 0:03:08.2]} 13... c5 {[%clk
0:02:48.9]} 14. Be5 {[%clk 0:03:09.3]} 14... Rb6 {[%clk 0:02:49]} 15. b3 {[%clk
0:03:10.4]} 15... Nxe4 {[%clk 0:02:23.2]} 16. Bxg7 {[%clk 0:03:09.9]} 16... Rg8
{[%clk 0:02:24.1]} 17. Be5 {[%clk 0:03:06.6]} 17... Bd6 {[%clk 0:02:16.7]} 18.
Bxd6 {[%clk 0:03:00.3]} 18... Rxd6 {[%clk 0:02:16.4]} 19. Bd3 {[%clk 0:03:01.2]}
19... Qc6 {[%clk 0:02:03]} 20. Qf3 {[%clk 0:02:47.1]} 20... f5 {[%clk 0:01:47]}
21. Rfe1 {[%clk 0:02:44.8]} 21... Kd8 {[%clk 0:01:23.6]} 22. Bxe4 {[%clk
0:02:42]} 22... fxe4 {[%clk 0:01:23.1]} 23. Rxe4 {[%clk 0:02:29.8]} 23... Rd4
{[%clk 0:01:09.6]} 24. Rae1 {[%clk 0:02:28.5]} 24... Qd5 {[%clk 0:01:03.8]} 25.
c4 {[%clk 0:02:24.1]} 25... Rxe4 {[%clk 0:00:58.5]} 26. Qxe4 {[%clk 0:02:20.2]}
26... Qxe4 {[%clk 0:00:57.7]} 27. Rxe4 {[%clk 0:02:22.1]} 27... Rg5 {[%clk
0:00:49.3]} 28. h4 {[%clk 0:02:18.3]} 28... Rf5 {[%clk 0:00:43.2]} 29. f3 {[%clk
0:02:19.1]} 29... Kc7 {[%clk 0:00:31.2]} 30. Kf2 {[%clk 0:02:19.4]} 30... Kc6
{[%clk 0:00:30.2]} 31. g4 {[%clk 0:02:19.6]} 31... Rf7 {[%clk 0:00:26.3]} 32. g5
{[%clk 0:02:20.8]} 32... Rf5 {[%clk 0:00:23.3]} 33. Rg4 {[%clk 0:02:20.8]} 33...
d5 {[%clk 0:00:21.6]} 34. cxd5+ {[%clk 0:02:21.1]} 34... exd5 {[%clk 0:00:22.2]}
35. h5 {[%clk 0:02:22.6]} 35... Kd6 {[%clk 0:00:23.2]} 36. g6 {[%clk 0:02:21.6]}
36... hxg6 {[%clk 0:00:24.1]} 37. hxg6 {[%clk 0:02:23.5]} 37... Rf8 {[%clk
0:00:25.2]} 38. Ke3 {[%clk 0:01:55.6]} 38... d4+ {[%clk 0:00:23.8]} 39. Ke4
{[%clk 0:01:56.2]} 39... Ke6 {[%clk 0:00:22.6]} 40. f4 {[%clk 0:01:53.3]} 40...
Kf6 {[%clk 0:00:19.3]} 41. f5 {[%clk 0:01:30.6]} 41... Re8+ {[%clk 0:00:19.3]}
42. Kf4 {[%clk 0:01:27.9]} 42... d3 {[%clk 0:00:16.1]} 43. Rg1 {[%clk
0:01:17.8]} 43... d2 {[%clk 0:00:08.8]} 44. Rd1 {[%clk 0:01:14.4]} 44... Re2
{[%clk 0:00:09.5]} 45. Kf3 {[%clk 0:01:12.1]} 45... Rh2 {[%clk 0:00:10.2]} 46.
Ke3 {[%clk 0:01:13.1]} 46... Kxf5 {[%clk 0:00:11.5]} 47. Rxd2 {[%clk 0:01:12.8]}
47... Rh3+ {[%clk 0:00:10.6]} 48. Ke2 {[%clk 0:01:08.1]} 48... Kxg6 {[%clk
0:00:11.8]} 49. Kd1 {[%clk 0:01:08.8]} 49... Kf5 {[%clk 0:00:11.7]} 50. Re2
{[%clk 0:01:10]} 50... Rh6 {[%clk 0:00:08.2]} 51. Kc2 {[%clk 0:01:11.1]} 51...
a5 {[%clk 0:00:06.9]} 52. Kc3 {[%clk 0:01:10.6]} 52... Rh4 {[%clk 0:00:08.1]}
53. a4 {[%clk 0:01:10.6]} 53... Rb4 {[%clk 0:00:07.7]} 54. Re8 {[%clk
0:01:00.7]} 54... c4 {[%clk 0:00:07.6]} 55. bxc4 {[%clk 0:01:02.2]} 55... Rxa4
{[%clk 0:00:08.9]} 56. c5 {[%clk 0:01:03.1]} 56... Ra1 {[%clk 0:00:09.9]} 57.
Kb2 {[%clk 0:00:58.8]} 57... Rh1 {[%clk 0:00:07.4]} 58. Kb3 {[%clk 0:00:58.8]}
58... Rc1 {[%clk 0:00:06.9]} 59. Rc8 {[%clk 0:00:57.9]} 59... Ke6 {[%clk
0:00:06.5]} 60. Ka4 {[%clk 0:00:59.5]} 60... Kd7 {[%clk 0:00:04.2]} 61. Rh8
{[%clk 0:00:59.2]} 61... Rxc5 {[%clk 0:00:05]} 62. Rh7+ {[%clk 0:01:00.2]} 62...
Kc6 {[%clk 0:00:05.8]} 1/2-1/2

[Event "*** Titled Tuesday Blitz"]
[Site "Chess.com"]
[Date "2019.07.02"]
[Round "3"]
[White "petrpalachev"]
[Black "Lunaticx"]
[Result "0-1"]
[WhiteElo "2773"]
[BlackElo "2870"]
[TimeControl "180+2"]
[EndTime "13:41:21 PDT"]
[Termination "Lunaticx won by resignation"]

1. d4 {[%clk 0:03:01.9]} 1... Nf6 {[%clk 0:03:00.6]} 2. c4 {[%clk 0:03:03.3]}
2... e6 {[%clk 0:03:01.8]} 3. Nf3 {[%clk 0:03:04.7]} 3... Bb4+ {[%clk
0:02:59.4]} 4. Nbd2 {[%clk 0:03:05.1]} 4... d5 {[%clk 0:02:56.4]} 5. Qa4+ {[%clk
0:03:04.4]} 5... Nc6 {[%clk 0:02:57]} 6. e3 {[%clk 0:03:04.5]} 6... O-O {[%clk
0:02:56.4]} 7. a3 {[%clk 0:03:03.5]} 7... Be7 {[%clk 0:02:50.8]} 8. Be2 {[%clk
0:02:56.6]} 8... Re8 {[%clk 0:02:43.8]} 9. O-O {[%clk 0:02:57]} 9... Bf8 {[%clk
0:02:44.7]} 10. Rd1 {[%clk 0:02:47.8]} 10... a5 {[%clk 0:02:36.8]} 11. Qc2
{[%clk 0:02:16.8]} 11... a4 {[%clk 0:02:37.3]} 12. e4 {[%clk 0:02:14.9]} 12...
Nh5 {[%clk 0:01:37.8]} 13. g3 {[%clk 0:02:12.4]} 13... g6 {[%clk 0:01:34.5]} 14.
e5 {[%clk 0:02:11.7]} 14... Ng7 {[%clk 0:01:30.9]} 15. Nf1 {[%clk 0:02:12.5]}
15... dxc4 {[%clk 0:01:26.7]} 16. Bxc4 {[%clk 0:02:11.2]} 16... Bd7 {[%clk
0:01:23.7]} 17. Ne3 {[%clk 0:02:08.8]} 17... Na5 {[%clk 0:01:24.6]} 18. Ba2
{[%clk 0:02:07.9]} 18... Nb3 {[%clk 0:01:23.5]} 19. Bxb3 {[%clk 0:02:04.4]}
19... axb3 {[%clk 0:01:24.4]} 20. Qc3 {[%clk 0:02:06.3]} 20... Bc6 {[%clk
0:01:07.8]} 21. Ng4 {[%clk 0:02:07.2]} 21... Be7 {[%clk 0:01:05.9]} 22. h4
{[%clk 0:02:05.5]} 22... Qd5 {[%clk 0:01:00.1]} 23. Rd3 {[%clk 0:02:06.9]} 23...
Bb5 {[%clk 0:00:56]} 24. Re3 {[%clk 0:02:06.6]} 24... Qc4 {[%clk 0:00:57.3]} 25.
Nh6+ {[%clk 0:02:02.1]} 25... Kf8 {[%clk 0:00:57.7]} 26. Bd2 {[%clk 0:02:04]}
26... c5 {[%clk 0:00:42.1]} 27. Ng5 {[%clk 0:01:47.7]} 27... Bxg5 {[%clk
0:00:39.3]} 28. hxg5 {[%clk 0:01:49.6]} 28... Qxc3 {[%clk 0:00:38.8]} 29. Bxc3
{[%clk 0:01:48.6]} 29... Nf5 {[%clk 0:00:33.1]} 30. Nxf5 {[%clk 0:01:45.4]}
30... gxf5 {[%clk 0:00:35]} 31. dxc5 {[%clk 0:01:47.3]} 31... Bc6 {[%clk
0:00:35.4]} 32. Rd3 {[%clk 0:01:46]} 32... Bd5 {[%clk 0:00:35.5]} 33. f3 {[%clk
0:01:43.9]} 33... Kg7 {[%clk 0:00:34.9]} 34. Kf2 {[%clk 0:01:45.4]} 34... h6
{[%clk 0:00:35.1]} 35. Bd2 {[%clk 0:01:43]} 35... h5 {[%clk 0:00:25.5]} 36. Rh1
{[%clk 0:01:43.4]} 36... Kg6 {[%clk 0:00:26.9]} 37. Rh4 {[%clk 0:01:38.4]} 37...
Rec8 {[%clk 0:00:27.7]} 38. Bb4 {[%clk 0:01:37.3]} 38... b6 {[%clk 0:00:25.1]}
39. cxb6 {[%clk 0:01:35.2]} 39... Rab8 {[%clk 0:00:26.2]} 40. Be7 {[%clk
0:01:01.5]} 40... Rc2+ {[%clk 0:00:22.6]} 41. Ke3 {[%clk 0:01:02.4]} 41... Rxb2
{[%clk 0:00:20.8]} 42. g4 {[%clk 0:01:03.7]} 42... fxg4 {[%clk 0:00:18.1]} 43.
fxg4 {[%clk 0:01:04.9]} 43... hxg4 {[%clk 0:00:17.4]} 44. Rh6+ {[%clk
0:01:04.9]} 44... Kf5 {[%clk 0:00:18.8]} 45. Rxd5 {[%clk 0:00:47.6]} 45... Re2+
{[%clk 0:00:09.3]} 46. Kxe2 {[%clk 0:00:47.4]} 46... exd5 {[%clk 0:00:11.2]} 47.
Rf6+ {[%clk 0:00:44.1]} 47... Ke4 {[%clk 0:00:12.5]} 48. Bc5 {[%clk 0:00:42.3]}
48... g3 {[%clk 0:00:08.7]} 49. Rf1 {[%clk 0:00:42]} 49... Rc8 {[%clk 0:00:07]}
50. Bd6 {[%clk 0:00:25.2]} 50... Rc2+ {[%clk 0:00:04.6]} 51. Kd1 {[%clk
0:00:26.5]} 51... g2 {[%clk 0:00:04.9]} 52. Rg1 {[%clk 0:00:20.5]} 52... Kd3
{[%clk 0:00:06.1]} 53. b7 {[%clk 0:00:14]} 53... b2 {[%clk 0:00:07.1]} 0-1

[Event "*** Titled Tuesday Blitz"]
[Site "Chess.com"]
[Date "2019.07.02"]
[Round "3"]
[White "hermionegrangermagic"]
[Black "Qvalda"]
[Result "1-0"]
[WhiteElo "2341"]
[BlackElo "2501"]
[TimeControl "180+2"]
[EndTime "13:41:30 PDT"]
[Termination "hermionegrangermagic won by resignation"]

1. e4 {[%clk 0:03:01.9]} 1... c5 {[%clk 0:03:00.4]} 2. Nf3 {[%clk 0:03:02]} 2...
g6 {[%clk 0:03:00.9]} 3. d4 {[%clk 0:03:02.4]} 3... cxd4 {[%clk 0:03:02.8]} 4.
Nxd4 {[%clk 0:03:03.8]} 4... Nc6 {[%clk 0:03:03.3]} 5. Nc3 {[%clk 0:03:04.7]}
5... Bg7 {[%clk 0:03:03.8]} 6. Be3 {[%clk 0:03:05.9]} 6... Nf6 {[%clk
0:03:04.3]} 7. Bc4 {[%clk 0:03:07]} 7... O-O {[%clk 0:03:04.9]} 8. Bb3 {[%clk
0:03:07.9]} 8... d6 {[%clk 0:03:05.7]} 9. f3 {[%clk 0:03:09.2]} 9... Bd7 {[%clk
0:03:06.1]} 10. Qd2 {[%clk 0:03:10.4]} 10... Nxd4 {[%clk 0:03:07]} 11. Bxd4
{[%clk 0:03:12.3]} 11... b5 {[%clk 0:03:08.1]} 12. a4 {[%clk 0:03:08.8]} 12...
bxa4 {[%clk 0:02:50]} 13. Bxa4 {[%clk 0:03:04.5]} 13... Bxa4 {[%clk 0:02:48.3]}
14. Rxa4 {[%clk 0:03:04.1]} 14... Qd7 {[%clk 0:02:45]} 15. O-O {[%clk
0:02:58.5]} 15... Rfb8 {[%clk 0:02:25.9]} 16. b3 {[%clk 0:02:54.6]} 16... Rb7
{[%clk 0:02:24.4]} 17. Rfa1 {[%clk 0:02:52.4]} 17... Nh5 {[%clk 0:02:15.3]} 18.
Bxg7 {[%clk 0:02:51.3]} 18... Nxg7 {[%clk 0:02:17.2]} 19. Qd4 {[%clk 0:02:47.1]}
19... Ne6 {[%clk 0:02:16.3]} 20. Qe3 {[%clk 0:02:45.5]} 20... Rc8 {[%clk
0:02:03.7]} 21. Nd5 {[%clk 0:02:15.9]} 21... Rxc2 {[%clk 0:01:25.3]} 22. Rxa7
{[%clk 0:02:14.9]} 22... Rc1+ {[%clk 0:00:46.8]} 23. Rxc1 {[%clk 0:01:23.5]}
23... Rxa7 {[%clk 0:00:47.7]} 24. b4 {[%clk 0:01:22.5]} 24... Kg7 {[%clk
0:00:35.2]} 25. h4 {[%clk 0:01:19.7]} 25... f6 {[%clk 0:00:32.2]} 26. b5 {[%clk
0:01:04]} 26... Ra2 {[%clk 0:00:31.8]} 27. b6 {[%clk 0:01:02]} 27... Nc5 {[%clk
0:00:28.8]} 28. e5 {[%clk 0:00:46.3]} 28... Qe6 {[%clk 0:00:21.4]} 29. exf6+
{[%clk 0:00:44.3]} 29... exf6 {[%clk 0:00:21.9]} 30. Qxe6 {[%clk 0:00:34.6]}
30... Nxe6 {[%clk 0:00:23.8]} 31. Rc6 {[%clk 0:00:15]} 31... Rb2 {[%clk
0:00:24.7]} 32. Rxd6 {[%clk 0:00:13.5]} 32... Nd4 {[%clk 0:00:25.3]} 33. Rd7+
{[%clk 0:00:06.8]} 33... Kh6 {[%clk 0:00:18.5]} 34. Nxf6 {[%clk 0:00:07.2]}
34... Ne2+ {[%clk 0:00:18.8]} 35. Kh2 {[%clk 0:00:07.8]} 35... g5 {[%clk
0:00:19.2]} 36. h5 {[%clk 0:00:08.8]} 36... g4 {[%clk 0:00:14.9]} 37. Nxg4+
{[%clk 0:00:08.2]} 37... Kxh5 {[%clk 0:00:14.9]} 38. Rxh7+ {[%clk 0:00:06.4]}
38... Kg5 {[%clk 0:00:16.1]} 39. Rg7+ {[%clk 0:00:06.7]} 39... Kf4 {[%clk
0:00:09.2]} 40. b7 {[%clk 0:00:07.1]} 40... Nd4 {[%clk 0:00:09.4]} 41. Rf7+
{[%clk 0:00:08]} 41... Kg5 {[%clk 0:00:09.8]} 42. Ne3 {[%clk 0:00:06.7]} 42...
Ne6 {[%clk 0:00:04.9]} 43. Kg3 {[%clk 0:00:06.2]} 43... Rb3 {[%clk 0:00:04.7]}
44. Nd5 {[%clk 0:00:05.8]} 44... Kg6 {[%clk 0:00:05]} 45. Rd7 {[%clk 0:00:06.7]}
45... Ng7 {[%clk 0:00:04.9]} 46. Ne7+ {[%clk 0:00:06.9]} 46... Kf6 {[%clk
0:00:05.1]} 47. Nc6 {[%clk 0:00:08.3]} 47... Nf5+ {[%clk 0:00:05.1]} 48. Kh2
{[%clk 0:00:09.5]} 48... Ke6 {[%clk 0:00:05.7]} 49. b8=Q {[%clk 0:00:10.2]}
49... Rxb8 {[%clk 0:00:05.7]} 50. Nxb8 {[%clk 0:00:11.2]} 50... Ne3 {[%clk
0:00:04.8]} 51. Rd3 {[%clk 0:00:11.1]} 51... Nf5 {[%clk 0:00:05.1]} 52. Nc6
{[%clk 0:00:10.6]} 52... Kf6 {[%clk 0:00:05.9]} 53. Nd4 {[%clk 0:00:11.7]} 53...
Nh4 {[%clk 0:00:06.3]} 54. Kg3 {[%clk 0:00:12]} 54... Ng6 {[%clk 0:00:07.2]} 55.
Ra3 {[%clk 0:00:12.8]} 55... Ke5 {[%clk 0:00:08.4]} 56. Ne2 {[%clk 0:00:13.3]}
1-0